[Event "*** Titled Tuesday Blitz"]
[Site "Chess.com"]
[Date "2019.04.02"]
[Round "4"]
[White "Chesstrainer1"]
[Black "Karina_Oparina"]
[Result "0-1"]
[WhiteElo "2400"]
[BlackElo "2254"]
[TimeControl "180+2"]
[EndTime "14:51:50 PDT"]
[Termination "Karina_Oparina won by resignation"]

1. d4 {[%clk 0:03:01.9]} 1... Nf6 {[%clk 0:02:58.3]} 2. c4 {[%clk 0:03:02.3]}
2... e6 {[%clk 0:02:58.8]} 3. g3 {[%clk 0:03:03.1]} 3... Bb4+ {[%clk 0:02:58.4]}
4. Nd2 {[%clk 0:03:00.9]} 4... c5 {[%clk 0:02:52.5]} 5. a3 {[%clk 0:02:36.2]}
5... Bxd2+ {[%clk 0:02:52.3]} 6. Qxd2 {[%clk 0:02:38.1]} 6... cxd4 {[%clk
0:02:53.1]} 7. Nf3 {[%clk 0:02:32.4]} 7... Nc6 {[%clk 0:02:47.5]} 8. Nxd4 {[%clk
0:02:24.5]} 8... O-O {[%clk 0:02:42.4]} 9. Bg2 {[%clk 0:02:24.2]} 9... d5 {[%clk
0:02:41.6]} 10. O-O {[%clk 0:02:19]} 10... e5 {[%clk 0:02:31.4]} 11. Nxc6 {[%clk
0:01:58.4]} 11... bxc6 {[%clk 0:02:32]} 12. cxd5 {[%clk 0:01:49]} 12... cxd5
{[%clk 0:02:32.1]} 13. b4 {[%clk 0:01:43.5]} 13... Be6 {[%clk 0:02:28.6]} 14.
Bb2 {[%clk 0:01:38.3]} 14... e4 {[%clk 0:02:18.2]} 15. Rfc1 {[%clk 0:01:30.8]}
15... Rc8 {[%clk 0:02:15.7]} 16. Bd4 {[%clk 0:01:24.8]} 16... Qd7 {[%clk
0:02:09]} 17. Rc5 {[%clk 0:01:15.8]} 17... Rxc5 {[%clk 0:02:06.5]} 18. Bxc5
{[%clk 0:01:16.7]} 18... Rb8 {[%clk 0:02:06.7]} 19. Qd4 {[%clk 0:01:12.9]} 19...
a6 {[%clk 0:02:01]} 20. a4 {[%clk 0:01:05.6]} 20... Ne8 {[%clk 0:01:58]} 21. b5
{[%clk 0:00:48.4]} 21... axb5 {[%clk 0:01:56.9]} 22. a5 {[%clk 0:00:50]} 22...
Nc7 {[%clk 0:01:53.3]} 23. a6 {[%clk 0:00:50.6]} 23... Ra8 {[%clk 0:01:50.9]}
24. a7 {[%clk 0:00:51.5]} 24... f6 {[%clk 0:01:39.9]} 25. Bb6 {[%clk 0:00:47.2]}
25... Qc6 {[%clk 0:01:37.1]} 26. Qe3 {[%clk 0:00:32.3]} 26... Qb7 {[%clk
0:01:17.5]} 27. Qc5 {[%clk 0:00:26.4]} 27... Ne8 {[%clk 0:01:07.7]} 28. f3
{[%clk 0:00:20.1]} 28... Kf7 {[%clk 0:01:02]} 29. fxe4 {[%clk 0:00:19.9]} 29...
dxe4 {[%clk 0:01:02.9]} 30. Qd4 {[%clk 0:00:18.7]} 30... f5 {[%clk 0:01:01.4]}
31. Rf1 {[%clk 0:00:18.8]} 31... Nf6 {[%clk 0:00:59.8]} 32. Bc5 {[%clk
0:00:17.3]} 32... Kg8 {[%clk 0:00:55.1]} 33. h3 {[%clk 0:00:18.2]} 33... Nd7
{[%clk 0:00:53.7]} 34. g4 {[%clk 0:00:17.6]} 34... Nxc5 {[%clk 0:00:51.1]} 35.
Qxc5 {[%clk 0:00:19.5]} 35... fxg4 {[%clk 0:00:48.6]} 36. Ra1 {[%clk 0:00:18.5]}
36... gxh3 {[%clk 0:00:47.4]} 37. Qe5 {[%clk 0:00:19.4]} 37... hxg2 {[%clk
0:00:34.9]} 38. Qxe6+ {[%clk 0:00:19.8]} 38... Kh8 {[%clk 0:00:35.7]} 39. Rc1
{[%clk 0:00:13.4]} 39... h6 {[%clk 0:00:31.9]} 40. Ra1 {[%clk 0:00:09.3]} 40...
Rxa7 {[%clk 0:00:26.6]} 41. Rxa7 {[%clk 0:00:09.4]} 41... Qxa7+ {[%clk
0:00:27.4]} 42. Kxg2 {[%clk 0:00:09.4]} 42... Qb7 {[%clk 0:00:20.1]} 43. Kg3
{[%clk 0:00:08.1]} 43... b4 {[%clk 0:00:20.2]} 44. Qb3 {[%clk 0:00:08.7]} 44...
Kh7 {[%clk 0:00:19.3]} 45. Kf4 {[%clk 0:00:09.7]} 45... Qc7+ {[%clk 0:00:17.1]}
46. Kxe4 {[%clk 0:00:08.6]} 46... Qc3 {[%clk 0:00:17.9]} 47. Qb1 {[%clk
0:00:09.4]} 47... Qc4+ {[%clk 0:00:15.8]} 48. Ke5+ {[%clk 0:00:09.3]} 48... Kg8
{[%clk 0:00:16.1]} 49. Qg6 {[%clk 0:00:08.1]} 49... Qc3+ {[%clk 0:00:15.6]} 50.
Kd5 {[%clk 0:00:07.7]} 50... Qb3+ {[%clk 0:00:15.2]} 51. Kc5 {[%clk 0:00:08.2]}
51... Qc3+ {[%clk 0:00:15]} 52. Kb5 {[%clk 0:00:08.7]} 52... Qf6 {[%clk
0:00:09.3]} 53. Qe8+ {[%clk 0:00:08.5]} 53... Qf8 {[%clk 0:00:09.6]} 54. Qe6+
{[%clk 0:00:09.4]} 54... Kh8 {[%clk 0:00:10.5]} 55. e4 {[%clk 0:00:08.2]} 55...
b3 {[%clk 0:00:11.2]} 56. Qxb3 {[%clk 0:00:03.5]} 56... Qb8+ {[%clk 0:00:11.6]}
57. Kc4 {[%clk 0:00:05.4]} 57... Qxb3+ {[%clk 0:00:12.3]} 58. Kxb3 {[%clk
0:00:07.1]} 58... Kg8 {[%clk 0:00:13.7]} 59. Kc4 {[%clk 0:00:08.2]} 59... Kf7
{[%clk 0:00:14.8]} 60. Kd5 {[%clk 0:00:09.4]} 60... Ke7 {[%clk 0:00:15.8]} 61.
Ke5 {[%clk 0:00:10]} 61... h5 {[%clk 0:00:16.7]} 62. Kf5 {[%clk 0:00:10.7]}
62... g6+ {[%clk 0:00:17.4]} 63. Kg5 {[%clk 0:00:07.7]} 63... Ke6 {[%clk
0:00:18]} 0-1

[Event "*** Titled Tuesday Blitz"]
[Site "Chess.com"]
[Date "2019.04.02"]
[Round "4"]
[White "WPWPWP-2015"]
[Black "Touching3200"]
[Result "0-1"]
[WhiteElo "2372"]
[BlackElo "2368"]
[TimeControl "180+2"]
[EndTime "14:51:55 PDT"]
[Termination "Touching3200 won by checkmate"]

1. e4 {[%clk 0:03:01.9]} 1... c6 {[%clk 0:02:58.4]} 2. d4 {[%clk 0:03:01]} 2...
d5 {[%clk 0:02:59.6]} 3. e5 {[%clk 0:03:01.8]} 3... Bf5 {[%clk 0:02:59.4]} 4.
Nf3 {[%clk 0:03:00.8]} 4... e6 {[%clk 0:03:00.7]} 5. Be2 {[%clk 0:03:01.7]} 5...
c5 {[%clk 0:03:01.4]} 6. Be3 {[%clk 0:03:01.4]} 6... Nd7 {[%clk 0:03:02.1]} 7.
O-O {[%clk 0:02:58.9]} 7... Ne7 {[%clk 0:02:59.7]} 8. c3 {[%clk 0:02:58.7]} 8...
Nc6 {[%clk 0:03:00.6]} 9. Nbd2 {[%clk 0:02:58.9]} 9... Be7 {[%clk 0:03:01.3]}
10. h3 {[%clk 0:02:57.4]} 10... Qb6 {[%clk 0:02:55.2]} 11. Qb3 {[%clk
0:02:48.1]} 11... c4 {[%clk 0:02:41.8]} 12. Qxb6 {[%clk 0:02:40.9]} 12... axb6
{[%clk 0:02:43.7]} 13. a3 {[%clk 0:02:39.6]} 13... b5 {[%clk 0:02:44]} 14. g4
{[%clk 0:02:37.2]} 14... Bg6 {[%clk 0:02:44.1]} 15. Nh2 {[%clk 0:02:34]} 15...
h5 {[%clk 0:02:43.6]} 16. f4 {[%clk 0:02:31.6]} 16... hxg4 {[%clk 0:02:44.3]}
17. hxg4 {[%clk 0:02:30.6]} 17... Rh3 {[%clk 0:02:25.1]} 18. Bf2 {[%clk
0:02:15.8]} 18... Bd3 {[%clk 0:02:23.8]} 19. Rae1 {[%clk 0:02:01.4]} 19... O-O-O
{[%clk 0:01:55.5]} 20. Nhf3 {[%clk 0:01:40.6]} 20... Bxe2 {[%clk 0:01:49.4]} 21.
Rxe2 {[%clk 0:01:40.6]} 21... Rdh8 {[%clk 0:01:50.9]} 22. Kg2 {[%clk 0:01:37.4]}
22... f5 {[%clk 0:01:49.1]} 23. g5 {[%clk 0:00:36.3]} 23... Nf8 {[%clk
0:01:48.3]} 24. Bg3 {[%clk 0:00:36.1]} 24... Ng6 {[%clk 0:01:49]} 25. Ra1 {[%clk
0:00:29.4]} 25... Nb8 {[%clk 0:01:42.2]} 26. Ng1 {[%clk 0:00:24.1]} 26... Rh1
{[%clk 0:01:41.2]} 27. Ndf3 {[%clk 0:00:24.2]} 27... R1h7 {[%clk 0:01:28.7]} 28.
Ree1 {[%clk 0:00:21]} 28... Kc7 {[%clk 0:01:28.5]} 29. Rec1 {[%clk 0:00:20.8]}
29... Nd7 {[%clk 0:01:26.7]} 30. Ne2 {[%clk 0:00:21.2]} 30... Nb6 {[%clk
0:01:24.9]} 31. Rf1 {[%clk 0:00:16.1]} 31... Na4 {[%clk 0:01:25.7]} 32. Rab1
{[%clk 0:00:17.2]} 32... Rh3 {[%clk 0:01:25.2]} 33. Neg1 {[%clk 0:00:17.8]}
33... R3h5 {[%clk 0:01:19.9]} 34. Rf2 {[%clk 0:00:17.7]} 34... Kc6 {[%clk
0:01:19.1]} 35. Rc2 {[%clk 0:00:17.9]} 35... Bd8 {[%clk 0:01:20.2]} 36. Rcc1
{[%clk 0:00:18.8]} 36... Ba5 {[%clk 0:01:21]} 37. Ne2 {[%clk 0:00:19]} 37... Ne7
{[%clk 0:01:11.1]} 38. Rf1 {[%clk 0:00:19.2]} 38... Bd8 {[%clk 0:01:11.6]} 39.
Kf2 {[%clk 0:00:19.4]} 39... Kd7 {[%clk 0:01:10.3]} 40. Ke3 {[%clk 0:00:19.7]}
40... Nc6 {[%clk 0:01:11.7]} 41. Rg1 {[%clk 0:00:19.4]} 41... Na5 {[%clk
0:01:13.2]} 42. Nd2 {[%clk 0:00:18.5]} 42... Rh3 {[%clk 0:01:12.7]} 43. Kf2
{[%clk 0:00:19.6]} 43... Be7 {[%clk 0:01:12.3]} 44. Kg2 {[%clk 0:00:20.7]} 44...
Nb6 {[%clk 0:01:07]} 45. Rgf1 {[%clk 0:00:20.8]} 45... Nb3 {[%clk 0:01:07.8]}
46. Nf3 {[%clk 0:00:18.5]} 46... Na4 {[%clk 0:01:05]} 47. Rfd1 {[%clk
0:00:18.3]} 47... R3h5 {[%clk 0:01:01.5]} 48. Neg1 {[%clk 0:00:18.8]} 48... Bxa3
{[%clk 0:01:00.7]} 49. bxa3 {[%clk 0:00:18.4]} 49... Nxc3 {[%clk 0:01:02]} 50.
Be1 {[%clk 0:00:15]} 50... Nxd1 {[%clk 0:01:00.5]} 51. Rxd1 {[%clk 0:00:15.3]}
51... Ra8 {[%clk 0:01:01]} 52. Bb4 {[%clk 0:00:15.8]} 52... Na5 {[%clk
0:01:00.4]} 53. Ne2 {[%clk 0:00:16.2]} 53... Nc6 {[%clk 0:00:57.3]} 54. Nc3
{[%clk 0:00:15]} 54... Nxb4 {[%clk 0:00:56.7]} 55. axb4 {[%clk 0:00:15.7]} 55...
Kc6 {[%clk 0:00:58.3]} 56. Rd2 {[%clk 0:00:11.3]} 56... Ra3 {[%clk 0:00:59.1]}
57. Ne2 {[%clk 0:00:09]} 57... Rb3 {[%clk 0:00:56.7]} 58. Ng3 {[%clk 0:00:09.6]}
58... Rh8 {[%clk 0:00:57.4]} 59. Re2 {[%clk 0:00:09.9]} 59... g6 {[%clk
0:00:58]} 60. Nf1 {[%clk 0:00:04.9]} 60... Rxb4 {[%clk 0:00:59]} 61. Ne3 {[%clk
0:00:05.8]} 61... Rb1 {[%clk 0:00:56.4]} 62. Kf2 {[%clk 0:00:06.3]} 62... b4
{[%clk 0:00:57.3]} 63. Ng2 {[%clk 0:00:04.5]} 63... Rhh1 {[%clk 0:00:56.6]} 64.
Nfh4 {[%clk 0:00:04.3]} 64... c3 {[%clk 0:00:54.3]} 65. Nxg6 {[%clk 0:00:05.3]}
65... b3 {[%clk 0:00:55.6]} 66. Ne7+ {[%clk 0:00:06.2]} 66... Kd7 {[%clk
0:00:56.4]} 67. Ng8 {[%clk 0:00:06.8]} 67... c2 {[%clk 0:00:56.9]} 68. Nf6+
{[%clk 0:00:07.3]} 68... Ke7 {[%clk 0:00:57.9]} 69. g6 {[%clk 0:00:07.4]} 69...
c1=Q {[%clk 0:00:58.2]} 70. g7 {[%clk 0:00:08.5]} 70... Qf1+ {[%clk 0:00:48.8]}
71. Kg3 {[%clk 0:00:08.6]} 71... Qxe2 {[%clk 0:00:49.7]} 72. g8=Q {[%clk
0:00:08.7]} 72... Qd3+ {[%clk 0:00:46.3]} 73. Kf2 {[%clk 0:00:08.9]} 73... Rb2#
{[%clk 0:00:47]} 0-1

[Event "*** Titled Tuesday Blitz"]
[Site "Chess.com"]
[Date "2019.04.02"]
[Round "4"]
[White "vugarrasulov"]
[Black "Fighterman91"]
[Result "0-1"]
[WhiteElo "2843"]
[BlackElo "2595"]
[TimeControl "180+2"]
[EndTime "14:52:16 PDT"]
[Termination "Fighterman91 won by resignation"]

1. e4 {[%clk 0:03:01.9]} 1... c5 {[%clk 0:03:00.2]} 2. Nf3 {[%clk 0:03:03.1]}
2... Nc6 {[%clk 0:02:59.2]} 3. d4 {[%clk 0:03:04]} 3... cxd4 {[%clk 0:03:00.7]}
4. Nxd4 {[%clk 0:03:05.9]} 4... Qb6 {[%clk 0:03:02.1]} 5. Nb3 {[%clk 0:03:05.8]}
5... Nf6 {[%clk 0:03:03.5]} 6. Bd3 {[%clk 0:03:06]} 6... d6 {[%clk 0:03:03.8]}
7. O-O {[%clk 0:03:06.2]} 7... g6 {[%clk 0:03:04.7]} 8. Nc3 {[%clk 0:03:07.2]}
8... Bg7 {[%clk 0:03:05.6]} 9. Be3 {[%clk 0:03:08.1]} 9... Qd8 {[%clk
0:03:03.9]} 10. h3 {[%clk 0:03:08.9]} 10... O-O {[%clk 0:03:04.1]} 11. f4 {[%clk
0:03:08]} 11... a5 {[%clk 0:02:50.8]} 12. a4 {[%clk 0:03:06.3]} 12... Be6 {[%clk
0:02:49]} 13. Nd4 {[%clk 0:02:52.5]} 13... Bd7 {[%clk 0:01:56.4]} 14. Nxc6
{[%clk 0:02:47]} 14... Bxc6 {[%clk 0:01:56.1]} 15. Bd4 {[%clk 0:02:48.1]} 15...
Nd7 {[%clk 0:01:55.9]} 16. Bxg7 {[%clk 0:02:48.3]} 16... Qb6+ {[%clk 0:01:56.8]}
17. Kh2 {[%clk 0:02:47.3]} 17... Kxg7 {[%clk 0:01:58.1]} 18. Bb5 {[%clk
0:02:30.9]} 18... Qc5 {[%clk 0:01:49]} 19. Qd3 {[%clk 0:02:21.4]} 19... Qb4
{[%clk 0:01:39.4]} 20. Nd5 {[%clk 0:02:04.4]} 20... Bxd5 {[%clk 0:01:36.3]} 21.
exd5 {[%clk 0:02:04.7]} 21... Nc5 {[%clk 0:01:15.3]} 22. Qe3 {[%clk 0:02:04.2]}
22... Qxb2 {[%clk 0:01:12.3]} 23. c3 {[%clk 0:02:04.1]} 23... Qc2 {[%clk
0:01:02.5]} 24. Rae1 {[%clk 0:01:55.9]} 24... Rad8 {[%clk 0:00:54.8]} 25. f5
{[%clk 0:01:52.9]} 25... Kg8 {[%clk 0:00:35.1]} 26. Qxe7 {[%clk 0:01:26.7]}
26... Qxc3 {[%clk 0:00:34.9]} 27. fxg6 {[%clk 0:01:27.8]} 27... hxg6 {[%clk
0:00:33.9]} 28. Rxf7 {[%clk 0:01:27.7]} 28... Rxf7 {[%clk 0:00:25.6]} 29. Qxd8+
{[%clk 0:01:28.8]} 29... Kg7 {[%clk 0:00:27.3]} 30. Re8 {[%clk 0:01:26.7]} 30...
Qf6 {[%clk 0:00:20.1]} 31. Qxf6+ {[%clk 0:01:18.2]} 31... Kxf6 {[%clk
0:00:20.7]} 32. Kg3 {[%clk 0:01:19.4]} 32... Re7 {[%clk 0:00:20.9]} 33. Ra8
{[%clk 0:01:16.5]} 33... Ke5 {[%clk 0:00:21.2]} 34. Rxa5 {[%clk 0:01:15]} 34...
Kxd5 {[%clk 0:00:20.1]} 35. Ra8 {[%clk 0:01:16.2]} 35... Kd4 {[%clk 0:00:16.7]}
36. Rg8 {[%clk 0:01:11]} 36... g5 {[%clk 0:00:16.2]} 37. Kg4 {[%clk 0:01:10.8]}
37... Ne4 {[%clk 0:00:16.9]} 38. Rd8 {[%clk 0:01:07.3]} 38... Rf7 {[%clk
0:00:17.1]} 39. Kh5 {[%clk 0:01:03.1]} 39... d5 {[%clk 0:00:15.8]} 40. Kg6
{[%clk 0:00:49.6]} 40... Rf6+ {[%clk 0:00:15.9]} 41. Kg7 {[%clk 0:00:51]} 41...
Rf2 {[%clk 0:00:16.7]} 42. Rd7 {[%clk 0:00:48.3]} 42... b6 {[%clk 0:00:15.7]}
43. Bc6 {[%clk 0:00:46.2]} 43... Nc3 {[%clk 0:00:14.9]} 44. g4 {[%clk
0:00:47.4]} 44... Kc5 {[%clk 0:00:10.7]} 45. Bb7 {[%clk 0:00:47]} 45... Rf3
{[%clk 0:00:08.4]} 46. Kg6 {[%clk 0:00:47.4]} 46... Rxh3 {[%clk 0:00:09.5]} 47.
Kxg5 {[%clk 0:00:48.7]} 47... Re3 {[%clk 0:00:10.3]} 48. Kf5 {[%clk 0:00:48.8]}
48... Rf3+ {[%clk 0:00:08.3]} 49. Kg6 {[%clk 0:00:47.7]} 49... Rg3 {[%clk
0:00:08.6]} 50. g5 {[%clk 0:00:48.9]} 50... d4 {[%clk 0:00:08.3]} 51. Kf5 {[%clk
0:00:48.7]} 51... d3 {[%clk 0:00:09.2]} 52. g6 {[%clk 0:00:48.4]} 52... Ne2
{[%clk 0:00:07.7]} 53. Kf6 {[%clk 0:00:20.9]} 53... Nd4 {[%clk 0:00:08.2]} 54.
Rd5+ {[%clk 0:00:21.4]} 54... Kc4 {[%clk 0:00:09.1]} 55. Rg5 {[%clk 0:00:13.7]}
55... Rxg5 {[%clk 0:00:09.4]} 56. Kxg5 {[%clk 0:00:15.3]} 56... d2 {[%clk
0:00:10.5]} 57. g7 {[%clk 0:00:05.5]} 57... Ne6+ {[%clk 0:00:11.7]} 58. Kf6
{[%clk 0:00:06.9]} 58... Nxg7 {[%clk 0:00:13.6]} 59. Bf3 {[%clk 0:00:08.1]}
59... Ne8+ {[%clk 0:00:10.4]} 60. Ke5 {[%clk 0:00:09.5]} 60... Nc7 {[%clk
0:00:09.3]} 61. Kd6 {[%clk 0:00:10.6]} 61... Na6 {[%clk 0:00:09.5]} 62. Kc6
{[%clk 0:00:12]} 62... Nc5 {[%clk 0:00:09.8]} 63. Be2+ {[%clk 0:00:10.7]} 63...
Kb4 {[%clk 0:00:09.9]} 64. Kxb6 {[%clk 0:00:12.1]} 64... Nxa4+ {[%clk
0:00:10.3]} 65. Kc6 {[%clk 0:00:13.7]} 65... Nc3 {[%clk 0:00:11.6]} 66. Bh5
{[%clk 0:00:14.8]} 66... Kc4 {[%clk 0:00:12.9]} 67. Kb6 {[%clk 0:00:15]} 67...
Kd4 {[%clk 0:00:10.2]} 68. Ka5 {[%clk 0:00:15.3]} 68... Ke3 {[%clk 0:00:11.4]}
0-1

[Event "*** Titled Tuesday Blitz"]
[Site "Chess.com"]
[Date "2019.04.02"]
[Round "4"]
[White "enriquetejedor"]
[Black "LimeInTheCoconut"]
[Result "1-0"]
[WhiteElo "2547"]
[BlackElo "2508"]
[TimeControl "180+2"]
[EndTime "14:52:25 PDT"]
[Termination "enriquetejedor won by resignation"]

1. d4 {[%clk 0:02:05.9]} 1... Nf6 {[%clk 0:03:00.3]} 2. c4 {[%clk 0:02:05]} 2...
e6 {[%clk 0:03:00.8]} 3. Nf3 {[%clk 0:02:05.2]} 3... d5 {[%clk 0:03:01.6]} 4.
Nc3 {[%clk 0:02:05.8]} 4... Bb4 {[%clk 0:03:02.2]} 5. Qa4+ {[%clk 0:02:06.4]}
5... Nc6 {[%clk 0:03:02.8]} 6. Ne5 {[%clk 0:02:07.9]} 6... Rb8 {[%clk
0:02:51.8]} 7. e3 {[%clk 0:02:01.4]} 7... Ne4 {[%clk 0:02:39.6]} 8. Nxc6 {[%clk
0:01:28.4]} 8... bxc6 {[%clk 0:02:38.8]} 9. Qc2 {[%clk 0:01:27.8]} 9... O-O
{[%clk 0:02:33.3]} 10. Bd3 {[%clk 0:01:26.8]} 10... f5 {[%clk 0:02:31.2]} 11.
O-O {[%clk 0:01:26.7]} 11... Nxc3 {[%clk 0:02:28.4]} 12. bxc3 {[%clk 0:01:27.9]}
12... Bd6 {[%clk 0:02:29.4]} 13. cxd5 {[%clk 0:01:26]} 13... cxd5 {[%clk
0:02:27.7]} 14. c4 {[%clk 0:01:27.1]} 14... c6 {[%clk 0:02:28.6]} 15. a4 {[%clk
0:01:27.5]} 15... Rf6 {[%clk 0:02:21.5]} 16. Ba3 {[%clk 0:01:25.8]} 16... Bxa3
{[%clk 0:01:49.9]} 17. Rxa3 {[%clk 0:01:27.7]} 17... Ba6 {[%clk 0:01:48.8]} 18.
cxd5 {[%clk 0:01:25.4]} 18... Bxd3 {[%clk 0:01:49.3]} 19. Rxd3 {[%clk
0:01:25.1]} 19... cxd5 {[%clk 0:01:47]} 20. Rb3 {[%clk 0:01:11.4]} 20... Rxb3
{[%clk 0:01:38]} 21. Qxb3 {[%clk 0:01:13.3]} 21... Rf8 {[%clk 0:01:32.1]} 22.
Rc1 {[%clk 0:01:13]} 22... Qd7 {[%clk 0:01:28.3]} 23. g3 {[%clk 0:01:13.7]}
23... Rc8 {[%clk 0:01:23.3]} 24. Rxc8+ {[%clk 0:01:13.3]} 24... Qxc8 {[%clk
0:01:25.2]} 25. h4 {[%clk 0:01:13.8]} 25... h5 {[%clk 0:01:12.2]} 26. Kg2 {[%clk
0:01:12.3]} 26... Qd7 {[%clk 0:01:11.7]} 27. Qb8+ {[%clk 0:01:10.6]} 27... Kh7
{[%clk 0:01:12.5]} 28. Qb5 {[%clk 0:01:03.5]} 28... Qxb5 {[%clk 0:01:01]} 29.
axb5 {[%clk 0:01:05.4]} 29... Kg6 {[%clk 0:01:02.8]} 30. Kf3 {[%clk 0:01:06.6]}
30... Kf6 {[%clk 0:01:00.9]} 31. Kf4 {[%clk 0:01:06.3]} 31... g6 {[%clk
0:00:51.9]} 32. f3 {[%clk 0:01:07]} 32... Kf7 {[%clk 0:00:52.7]} 33. Ke5 {[%clk
0:01:07.8]} 33... Ke7 {[%clk 0:00:53.6]} 34. f4 {[%clk 0:01:09.5]} 34... Kd7
{[%clk 0:00:36.7]} 35. Kf6 {[%clk 0:01:09.3]} 35... Kc7 {[%clk 0:00:38]} 36.
Kxg6 {[%clk 0:00:55.9]} 36... Kb6 {[%clk 0:00:39.2]} 37. Kxh5 {[%clk 0:00:56.9]}
37... Kxb5 {[%clk 0:00:40.2]} 38. Kg6 {[%clk 0:00:56.6]} 38... a5 {[%clk
0:00:41.2]} 39. h5 {[%clk 0:00:58.2]} 39... a4 {[%clk 0:00:43.1]} 40. h6 {[%clk
0:01:00.1]} 40... a3 {[%clk 0:00:44.8]} 41. h7 {[%clk 0:01:02]} 41... a2 {[%clk
0:00:46.3]} 42. h8=Q {[%clk 0:01:03.6]} 42... a1=Q {[%clk 0:00:47.1]} 43. Qe8+
{[%clk 0:01:05.2]} 43... Kc4 {[%clk 0:00:47.2]} 44. Qxe6 {[%clk 0:01:06.4]}
44... Qg1 {[%clk 0:00:44.3]} 45. Qc6+ {[%clk 0:01:07.2]} 45... Kd3 {[%clk
0:00:43.2]} 46. Qxd5 {[%clk 0:01:07.9]} 46... Qxg3+ {[%clk 0:00:39.4]} 47. Kxf5
{[%clk 0:01:09]} 47... Qh3+ {[%clk 0:00:37.1]} 48. Kg5 {[%clk 0:01:09.2]} 48...
Qg3+ {[%clk 0:00:37]} 49. Kf5 {[%clk 0:01:08.9]} 49... Qh3+ {[%clk 0:00:37.7]}
50. Kf6 {[%clk 0:01:08.8]} 50... Qh6+ {[%clk 0:00:34.1]} 51. Ke5 {[%clk
0:01:09.2]} 51... Qg7+ {[%clk 0:00:30.7]} 52. Kd6 {[%clk 0:01:09.1]} 52... Qf8+
{[%clk 0:00:29.6]} 53. Kc6 {[%clk 0:01:09.6]} 53... Qa8+ {[%clk 0:00:28.6]} 54.
Kc5 {[%clk 0:01:10.1]} 54... Qa7+ {[%clk 0:00:29.3]} 55. Kb5 {[%clk 0:01:09.6]}
55... Qb8+ {[%clk 0:00:27.4]} 56. Ka6 {[%clk 0:01:11.1]} 56... Qc8+ {[%clk
0:00:22.5]} 57. Qb7 {[%clk 0:01:11.8]} 57... Qe6+ {[%clk 0:00:21.1]} 58. Qb6
{[%clk 0:01:13]} 58... Qc8+ {[%clk 0:00:18]} 59. Ka5 {[%clk 0:01:14.5]} 59...
Qc3+ {[%clk 0:00:13.6]} 60. Qb4 {[%clk 0:01:14.7]} 60... Qc7+ {[%clk 0:00:14.1]}
61. Qb6 {[%clk 0:01:15.9]} 61... Qc3+ {[%clk 0:00:14.9]} 62. Ka6 {[%clk
0:01:15.8]} 62... Qc8+ {[%clk 0:00:14.9]} 63. Ka7 {[%clk 0:01:11.6]} 63... Qd7+
{[%clk 0:00:10.2]} 64. Qb7 {[%clk 0:01:13]} 64... Qe8 {[%clk 0:00:05.4]} 65. f5
{[%clk 0:01:09.8]} 65... Kxe3 {[%clk 0:00:03.4]} 66. Qd5 {[%clk 0:01:02.5]}
66... Qa4+ {[%clk 0:00:03.8]} 67. Kb6 {[%clk 0:01:03.7]} 67... Qb4+ {[%clk
0:00:04.5]} 68. Kc6 {[%clk 0:01:04.6]} 68... Qa4+ {[%clk 0:00:05.3]} 69. Kd6
{[%clk 0:01:03.3]} 69... Qa6+ {[%clk 0:00:05.5]} 70. Qc6 {[%clk 0:01:02.5]}
70... Qa3+ {[%clk 0:00:06.5]} 71. Qc5 {[%clk 0:01:02.9]} 71... Qa6+ {[%clk
0:00:07.3]} 72. Ke5 {[%clk 0:01:04.5]} 72... Qa8 {[%clk 0:00:05.9]} 73. d5+
{[%clk 0:01:04]} 73... Kf3 {[%clk 0:00:07.2]} 74. Qc3+ {[%clk 0:01:04.9]} 74...
Kg4 {[%clk 0:00:07.9]} 75. Qd4+ {[%clk 0:01:06]} 75... Kg5 {[%clk 0:00:08.4]}
76. Qg1+ {[%clk 0:01:06.5]} 76... Kh5 {[%clk 0:00:09.2]} 77. Qg6+ {[%clk
0:01:07.7]} 77... Kh4 {[%clk 0:00:10.1]} 78. f6 {[%clk 0:01:04.7]} 78... Qb8+
{[%clk 0:00:10.7]} 79. d6 {[%clk 0:01:05.8]} 79... Qb5+ {[%clk 0:00:11.3]} 80.
Ke6 {[%clk 0:01:07.1]} 80... Qc4+ {[%clk 0:00:10.7]} 81. Ke7 {[%clk 0:01:08.4]}
81... Qe2+ {[%clk 0:00:11.2]} 82. Kf8 {[%clk 0:01:09.7]} 82... Qe6 {[%clk
0:00:09.5]} 83. Qh7+ {[%clk 0:01:09.2]} 83... Kg3 {[%clk 0:00:10.2]} 84. Qg8+
{[%clk 0:01:08.5]} 84... Qxg8+ {[%clk 0:00:11.3]} 85. Kxg8 {[%clk 0:01:09.9]}
1-0